[Event "*** Titled Tuesday Blitz"]
[Site "Chess.com"]
[Date "2019.02.05"]
[Round "1"]
[White "ChessWarrior7197"]
[Black "Astaneh"]
[Result "1-0"]
[WhiteElo "2877"]
[BlackElo "2435"]
[TimeControl "180+2"]
[EndTime "13:09:40 PST"]
[Termination "ChessWarrior7197 won by resignation"]

1. e4 {[%clk 0:03:01.9]} 1... c6 {[%clk 0:03:00.8]} 2. Nc3 {[%clk 0:02:59.5]}
2... d5 {[%clk 0:03:02.7]} 3. Nf3 {[%clk 0:03:00.4]} 3... Nf6 {[%clk 0:03:03]}
4. d3 {[%clk 0:02:54.2]} 4... dxe4 {[%clk 0:03:03.9]} 5. Nxe4 {[%clk 0:02:49.1]}
5... Nxe4 {[%clk 0:03:04.5]} 6. dxe4 {[%clk 0:02:51]} 6... Qxd1+ {[%clk
0:03:05.9]} 7. Kxd1 {[%clk 0:02:52.5]} 7... Bg4 {[%clk 0:03:07.4]} 8. Be2 {[%clk
0:02:38.1]} 8... Nd7 {[%clk 0:03:08]} 9. Nd4 {[%clk 0:02:38.7]} 9... Bxe2+
{[%clk 0:03:08.4]} 10. Kxe2 {[%clk 0:02:40.6]} 10... O-O-O {[%clk 0:03:08.8]}
11. Be3 {[%clk 0:02:39.1]} 11... g6 {[%clk 0:03:09.4]} 12. f3 {[%clk 0:02:38.7]}
12... Bg7 {[%clk 0:03:10.7]} 13. Rad1 {[%clk 0:02:36.4]} 13... Ne5 {[%clk
0:03:09]} 14. b3 {[%clk 0:02:34.8]} 14... Rd7 {[%clk 0:03:01.9]} 15. h3 {[%clk
0:02:31.5]} 15... Rhd8 {[%clk 0:03:02.8]} 16. c3 {[%clk 0:02:26.6]} 16... c5
{[%clk 0:02:47.2]} 17. Nc2 {[%clk 0:02:04.5]} 17... b6 {[%clk 0:02:46.4]} 18.
Rxd7 {[%clk 0:01:51.5]} 18... Rxd7 {[%clk 0:02:46.8]} 19. Bd2 {[%clk 0:01:51.1]}
19... e6 {[%clk 0:02:19.4]} 20. f4 {[%clk 0:01:49.5]} 20... Nc6 {[%clk
0:02:16.2]} 21. e5 {[%clk 0:01:41.8]} 21... f6 {[%clk 0:02:17.1]} 22. exf6
{[%clk 0:01:42.2]} 22... Bxf6 {[%clk 0:02:19]} 23. g4 {[%clk 0:01:42.6]} 23...
e5 {[%clk 0:02:16.5]} 24. f5 {[%clk 0:01:38.6]} 24... gxf5 {[%clk 0:02:18.4]}
25. gxf5 {[%clk 0:01:39.6]} 25... Rg7 {[%clk 0:02:18.6]} 26. Ne3 {[%clk
0:01:39.4]} 26... Ne7 {[%clk 0:02:18]} 27. Ng4 {[%clk 0:01:39.5]} 27... Ng8
{[%clk 0:02:13.5]} 28. Kf3 {[%clk 0:01:30.4]} 28... h5 {[%clk 0:02:13.4]} 29.
Nf2 {[%clk 0:01:21.6]} 29... Bh4 {[%clk 0:02:13.7]} 30. Ne4 {[%clk 0:01:22.2]}
30... Nf6 {[%clk 0:02:15.2]} 31. Nxf6 {[%clk 0:01:22.4]} 31... Bxf6 {[%clk
0:02:13]} 32. Rh2 {[%clk 0:01:21]} 32... Bh4 {[%clk 0:02:08.3]} 33. Be3 {[%clk
0:01:19.3]} 33... Kd7 {[%clk 0:01:19.4]} 34. Ke4 {[%clk 0:01:18.1]} 34... Ke7
{[%clk 0:01:13.1]} 35. b4 {[%clk 0:01:14.8]} 35... c4 {[%clk 0:00:54.7]} 36. a4
{[%clk 0:01:14.4]} 36... Kf6 {[%clk 0:00:41.4]} 37. Rd2 {[%clk 0:01:14.4]} 37...
Rg3 {[%clk 0:00:42.5]} 38. Rd6+ {[%clk 0:01:13.7]} 38... Ke7 {[%clk 0:00:43.6]}
39. Re6+ {[%clk 0:01:08.6]} 39... Kf7 {[%clk 0:00:44.4]} 40. a5 {[%clk
0:01:06.5]} 40... Rxh3 {[%clk 0:00:43]} 41. axb6 {[%clk 0:01:03.3]} 41... axb6
{[%clk 0:00:44.9]} 42. Rxb6 {[%clk 0:01:02.2]} 42... Be1 {[%clk 0:00:46.5]} 43.
Rc6 {[%clk 0:00:52.3]} 43... Bxc3 {[%clk 0:00:47.2]} 44. b5 {[%clk 0:00:51.8]}
44... Rh4+ {[%clk 0:00:41]} 45. Kd5 {[%clk 0:00:51.1]} 45... Bd4 {[%clk
0:00:42.5]} 46. Bg5 {[%clk 0:00:51.3]} 46... Rg4 {[%clk 0:00:41.7]} 47. Rc7+
{[%clk 0:00:51.7]} 47... Kg8 {[%clk 0:00:43.1]} 48. Bh6 {[%clk 0:00:47.5]} 48...
Bb6 {[%clk 0:00:25.1]} 49. Rb7 {[%clk 0:00:42.5]} 49... Bd8 {[%clk 0:00:26.3]}
50. Kxe5 {[%clk 0:00:33.8]} 50... c3 {[%clk 0:00:25.5]} 51. f6 {[%clk
0:00:33.9]} 51... Bxf6+ {[%clk 0:00:18.4]} 52. Kxf6 {[%clk 0:00:35.8]} 52... c2
{[%clk 0:00:14.5]} 53. Rc7 {[%clk 0:00:30.7]} 53... Rb4 {[%clk 0:00:15.3]} 54.
Kg6 {[%clk 0:00:26.7]} 54... Rg4+ {[%clk 0:00:16.8]} 55. Kxh5 {[%clk 0:00:27.9]}
55... Rb4 {[%clk 0:00:18.3]} 56. Kg6 {[%clk 0:00:28.7]} 56... Rg4+ {[%clk
0:00:19.7]} 57. Bg5 {[%clk 0:00:29.8]} 1-0

[Event "*** Titled Tuesday Blitz"]
[Site "Chess.com"]
[Date "2019.02.05"]
[Round "1"]
[White "Alekseyviktorovich"]
[Black "Koksik_13"]
[Result "0-1"]
[WhiteElo "2299"]
[BlackElo "2671"]
[TimeControl "180+2"]
[EndTime "13:09:40 PST"]
[Termination "Koksik_13 won on time"]

1. e4 {[%clk 0:03:00.9]} 1... e6 {[%clk 0:03:00.3]} 2. d4 {[%clk 0:03:01.5]}
2... d5 {[%clk 0:02:52.2]} 3. Nd2 {[%clk 0:03:02.4]} 3... Nf6 {[%clk 0:02:51.3]}
4. Bd3 {[%clk 0:03:01.9]} 4... c5 {[%clk 0:02:50]} 5. c3 {[%clk 0:03:02.5]} 5...
Nc6 {[%clk 0:02:48.9]} 6. Ngf3 {[%clk 0:03:02.6]} 6... cxd4 {[%clk 0:02:48.1]}
7. cxd4 {[%clk 0:03:03.3]} 7... dxe4 {[%clk 0:02:49.6]} 8. Nxe4 {[%clk
0:03:04.2]} 8... Bb4+ {[%clk 0:02:49.1]} 9. Nc3 {[%clk 0:03:05.3]} 9... Be7
{[%clk 0:02:48.3]} 10. O-O {[%clk 0:03:05.4]} 10... O-O {[%clk 0:02:49.8]} 11.
a3 {[%clk 0:03:05]} 11... b6 {[%clk 0:02:44.6]} 12. Re1 {[%clk 0:03:04.1]} 12...
Bb7 {[%clk 0:02:45.6]} 13. Bc2 {[%clk 0:03:04.6]} 13... Kh8 {[%clk 0:02:46.5]}
14. Qd3 {[%clk 0:03:02.5]} 14... g6 {[%clk 0:02:41.7]} 15. Bh6 {[%clk
0:03:00.1]} 15... Re8 {[%clk 0:02:42.6]} 16. Rad1 {[%clk 0:02:51.3]} 16... Kg8
{[%clk 0:02:41]} 17. Ba4 {[%clk 0:02:36.3]} 17... a6 {[%clk 0:02:35.8]} 18. Ne5
{[%clk 0:02:36.7]} 18... b5 {[%clk 0:02:30]} 19. Qh3 {[%clk 0:02:27.1]} 19...
bxa4 {[%clk 0:02:14.8]} 20. Nxf7 {[%clk 0:02:27.5]} 20... Qd7 {[%clk 0:02:15.8]}
21. Ng5 {[%clk 0:02:17]} 21... Bf8 {[%clk 0:02:10.8]} 22. Bxf8 {[%clk 0:02:10]}
22... Rxf8 {[%clk 0:02:10.3]} 23. Nxe6 {[%clk 0:02:04.6]} 23... Rf7 {[%clk
0:01:59.2]} 24. d5 {[%clk 0:02:02.7]} 24... Ne7 {[%clk 0:01:52.9]} 25. d6 {[%clk
0:01:54]} 25... Ned5 {[%clk 0:01:39.1]} 26. Nxd5 {[%clk 0:01:24.2]} 26... Bxd5
{[%clk 0:01:29.7]} 27. f4 {[%clk 0:01:02]} 27... Bxe6 {[%clk 0:01:28.5]} 28.
Rxe6 {[%clk 0:01:02.1]} 28... Nh5 {[%clk 0:01:22.6]} 29. f5 {[%clk 0:00:47.2]}
29... Raf8 {[%clk 0:01:15.9]} 30. fxg6 {[%clk 0:00:24.9]} 30... Qa7+ {[%clk
0:01:14]} 31. Qe3 {[%clk 0:00:25.8]} 31... Qxe3+ {[%clk 0:01:13.7]} 32. Rxe3
{[%clk 0:00:26.5]} 32... hxg6 {[%clk 0:01:15.1]} 33. d7 {[%clk 0:00:27.1]} 33...
Rd8 {[%clk 0:01:11.5]} 34. Re8+ {[%clk 0:00:27.6]} 34... Rf8 {[%clk 0:01:12.9]}
35. Rxf8+ {[%clk 0:00:26.4]} 35... Kxf8 {[%clk 0:01:13.8]} 36. Rd6 {[%clk
0:00:27.2]} 36... Kf7 {[%clk 0:01:02.9]} 37. Rxa6 {[%clk 0:00:26.9]} 37... Rxd7
{[%clk 0:01:00.6]} 38. Rxa4 {[%clk 0:00:27.9]} 38... Rd1+ {[%clk 0:01:01.2]} 39.
Kf2 {[%clk 0:00:28.5]} 39... Rd2+ {[%clk 0:01:03.1]} 40. Kf3 {[%clk 0:00:29.5]}
40... Rxb2 {[%clk 0:01:05]} 41. Ra7+ {[%clk 0:00:29.3]} 41... Kf6 {[%clk
0:01:05.9]} 42. Ra6+ {[%clk 0:00:30.5]} 42... Kg5 {[%clk 0:01:07.1]} 43. Ra5+
{[%clk 0:00:30.6]} 43... Kh6 {[%clk 0:01:08.4]} 44. g4 {[%clk 0:00:29.5]} 44...
Rb3+ {[%clk 0:01:07.2]} 45. Kf2 {[%clk 0:00:23.3]} 45... Nf4 {[%clk 0:01:07.2]}
46. h4 {[%clk 0:00:20.3]} 46... Kg7 {[%clk 0:00:41.5]} 47. h5 {[%clk 0:00:20.5]}
47... Nh3+ {[%clk 0:00:38.7]} 48. Ke2 {[%clk 0:00:13.2]} 48... g5 {[%clk
0:00:39.8]} 49. Ra7+ {[%clk 0:00:10.3]} 49... Kf6 {[%clk 0:00:40.9]} 50. Ra6+
{[%clk 0:00:10.4]} 50... Ke5 {[%clk 0:00:41.4]} 51. h6 {[%clk 0:00:11.4]} 51...
Nf4+ {[%clk 0:00:42.2]} 52. Kd2 {[%clk 0:00:10.5]} 52... Rh3 {[%clk 0:00:43.1]}
53. a4 {[%clk 0:00:10.5]} 53... Nd5 {[%clk 0:00:41]} 54. a5 {[%clk 0:00:09.6]}
54... Rh2+ {[%clk 0:00:42.2]} 55. Ke1 {[%clk 0:00:07.6]} 55... Kf4 {[%clk
0:00:42.4]} 56. Rd6 {[%clk 0:00:04.2]} 56... Nc3 {[%clk 0:00:40.1]} 0-1

[Event "*** Titled Tuesday Blitz"]
[Site "Chess.com"]
[Date "2019.02.05"]
[Round "1"]
[White "ruvat"]
[Black "DrVelja"]
[Result "0-1"]
[WhiteElo "2286"]
[BlackElo "2642"]
[TimeControl "180+2"]
[EndTime "13:09:46 PST"]
[Termination "DrVelja won by resignation"]

1. d4 {[%clk 0:02:59.2]} 1... Nf6 {[%clk 0:02:59.2]} 2. c4 {[%clk 0:02:59.9]}
2... g6 {[%clk 0:03:00.6]} 3. Nf3 {[%clk 0:03:00.7]} 3... Bg7 {[%clk 0:03:01.4]}
4. g3 {[%clk 0:03:01.8]} 4... O-O {[%clk 0:03:02.3]} 5. Bg2 {[%clk 0:03:03.3]}
5... d6 {[%clk 0:03:03.5]} 6. O-O {[%clk 0:03:04.9]} 6... Nc6 {[%clk 0:03:05.2]}
7. d5 {[%clk 0:03:04.6]} 7... Na5 {[%clk 0:03:05.3]} 8. Qa4 {[%clk 0:03:05.5]}
8... c5 {[%clk 0:03:04.8]} 9. Bd2 {[%clk 0:03:06.5]} 9... b6 {[%clk 0:03:06.2]}
10. Bc3 {[%clk 0:03:07.5]} 10... Bd7 {[%clk 0:03:07.2]} 11. Qc2 {[%clk
0:03:08.3]} 11... Nxc4 {[%clk 0:02:57.3]} 12. Bxf6 {[%clk 0:03:08]} 12... Bxf6
{[%clk 0:02:59.2]} 13. Qxc4 {[%clk 0:03:09.1]} 13... Bxb2 {[%clk 0:03:01.1]} 14.
Nc3 {[%clk 0:03:10.2]} 14... b5 {[%clk 0:03:01.9]} 15. Nxb5 {[%clk 0:03:03.5]}
15... Qa5 {[%clk 0:03:00.1]} 16. a4 {[%clk 0:03:00.5]} 16... Bxa1 {[%clk
0:02:50.6]} 17. Rxa1 {[%clk 0:03:00.2]} 17... Bxb5 {[%clk 0:02:40.9]} 18. Qxb5
{[%clk 0:03:00.3]} 18... Qxb5 {[%clk 0:02:42.5]} 19. axb5 {[%clk 0:03:00.6]}
19... Rfb8 {[%clk 0:02:43.5]} 20. Ra5 {[%clk 0:02:59.4]} 20... a6 {[%clk
0:02:38.5]} 21. bxa6 {[%clk 0:02:55]} 21... Rb6 {[%clk 0:02:39.8]} 22. Kf1
{[%clk 0:02:28.5]} 22... Raxa6 {[%clk 0:02:37.9]} 23. Rxa6 {[%clk 0:02:28.2]}
23... Rxa6 {[%clk 0:02:39.8]} 24. Ke1 {[%clk 0:02:27]} 24... Kg7 {[%clk
0:02:33.6]} 25. Kd1 {[%clk 0:02:20.3]} 25... Kf6 {[%clk 0:02:12.8]} 26. Nd2
{[%clk 0:02:15.5]} 26... Ra2 {[%clk 0:02:06.1]} 27. Be4 {[%clk 0:02:06.4]} 27...
Ke5 {[%clk 0:01:58.3]} 28. e3 {[%clk 0:02:01.8]} 28... e6 {[%clk 0:01:32.4]} 29.
f4+ {[%clk 0:01:58.8]} 29... Kf6 {[%clk 0:01:33.6]} 30. g4 {[%clk 0:01:50.1]}
30... h6 {[%clk 0:00:52.4]} 31. h4 {[%clk 0:01:47.2]} 31... g5 {[%clk
0:00:49.4]} 32. hxg5+ {[%clk 0:01:35.8]} 32... hxg5 {[%clk 0:00:51.3]} 33. dxe6
{[%clk 0:01:23.5]} 33... fxe6 {[%clk 0:00:51.9]} 34. f5 {[%clk 0:01:24.4]} 34...
d5 {[%clk 0:00:47.6]} 35. Bb1 {[%clk 0:01:25.1]} 35... Ra7 {[%clk 0:00:41]} 36.
fxe6 {[%clk 0:01:24.9]} 36... Kxe6 {[%clk 0:00:42.9]} 37. Ke2 {[%clk 0:01:23.2]}
37... c4 {[%clk 0:00:33.4]} 38. Nf3 {[%clk 0:01:17.6]} 38... Kd6 {[%clk
0:00:33.6]} 39. Nxg5 {[%clk 0:01:08.7]} 39... Rg7 {[%clk 0:00:35.1]} 40. Nf3
{[%clk 0:01:06]} 40... Rxg4 {[%clk 0:00:35.4]} 41. Nd4 {[%clk 0:00:59.7]} 41...
Kc5 {[%clk 0:00:32]} 42. Bf5 {[%clk 0:00:49.3]} 42... Rg8 {[%clk 0:00:28.6]} 43.
Kf3 {[%clk 0:00:46.9]} 43... c3 {[%clk 0:00:24.2]} 44. Bc2 {[%clk 0:00:39.9]}
44... Kb4 {[%clk 0:00:22.5]} 45. Kf4 {[%clk 0:00:35.1]} 45... Re8 {[%clk
0:00:21.6]} 46. Kf3 {[%clk 0:00:33.4]} 46... Ka3 {[%clk 0:00:21.5]} 47. Ke2
{[%clk 0:00:32.8]} 47... Kb2 {[%clk 0:00:22.9]} 48. Kd3 {[%clk 0:00:32.5]} 48...
Rh8 {[%clk 0:00:17.4]} 49. Bb3 {[%clk 0:00:21.4]} 49... Rh5 {[%clk 0:00:14.9]}
50. Bd1 {[%clk 0:00:17.1]} 50... Rh2 {[%clk 0:00:15.8]} 51. Be2 {[%clk
0:00:17.1]} 51... Rh1 {[%clk 0:00:13.8]} 52. Bf3 {[%clk 0:00:17.1]} 52... Rh4
{[%clk 0:00:15.3]} 53. Be2 {[%clk 0:00:17.7]} 53... Rxd4+ {[%clk 0:00:16]} 0-1

[Event "*** Titled Tuesday Blitz"]
[Site "Chess.com"]
[Date "2019.02.05"]
[Round "1"]
[White "Kirill_Klukin"]
[Black "WPWPWP-2015"]
[Result "0-1"]
[WhiteElo "2626"]
[BlackElo "2305"]
[TimeControl "180+2"]
[EndTime "13:09:47 PST"]
[Termination "WPWPWP-2015 won by resignation"]

1. Nf3 {[%clk 0:03:01.9]} 1... Nf6 {[%clk 0:02:59.7]} 2. d4 {[%clk 0:03:01.1]}
2... e6 {[%clk 0:02:57.3]} 3. e3 {[%clk 0:03:01.5]} 3... c5 {[%clk 0:02:55.6]}
4. Bd3 {[%clk 0:03:02.4]} 4... b6 {[%clk 0:02:55.7]} 5. O-O {[%clk 0:03:03]}
5... Bb7 {[%clk 0:02:56.5]} 6. c4 {[%clk 0:03:04]} 6... Be7 {[%clk 0:02:55]} 7.
Nc3 {[%clk 0:03:04.7]} 7... cxd4 {[%clk 0:02:53.5]} 8. exd4 {[%clk 0:03:05.7]}
8... O-O {[%clk 0:02:53.7]} 9. d5 {[%clk 0:03:06.3]} 9... Na6 {[%clk 0:02:49.9]}
10. Bf4 {[%clk 0:03:03.7]} 10... Re8 {[%clk 0:02:45.3]} 11. a3 {[%clk
0:02:54.9]} 11... Nc5 {[%clk 0:02:39.1]} 12. Bc2 {[%clk 0:02:55.6]} 12... a5
{[%clk 0:02:39.7]} 13. Nb5 {[%clk 0:02:27.4]} 13... exd5 {[%clk 0:02:30.1]} 14.
Nc7 {[%clk 0:01:53]} 14... dxc4 {[%clk 0:02:26.1]} 15. Nxe8 {[%clk 0:01:51.3]}
15... Qxe8 {[%clk 0:02:22.7]} 16. Re1 {[%clk 0:01:51.7]} 16... Qf8 {[%clk
0:02:21.7]} 17. Ne5 {[%clk 0:01:51.5]} 17... d5 {[%clk 0:02:15.7]} 18. Ng4
{[%clk 0:01:48.2]} 18... Nxg4 {[%clk 0:02:03.1]} 19. Qxg4 {[%clk 0:01:48.2]}
19... Bf6 {[%clk 0:02:01.4]} 20. Qf5 {[%clk 0:01:40.4]} 20... Ne4 {[%clk
0:01:54.1]} 21. Rab1 {[%clk 0:01:35.1]} 21... g6 {[%clk 0:01:50.1]} 22. Qd7
{[%clk 0:01:35.5]} 22... Qc8 {[%clk 0:01:43.5]} 23. Qxc8+ {[%clk 0:01:32.2]}
23... Rxc8 {[%clk 0:01:42.5]} 24. f3 {[%clk 0:01:28.4]} 24... Nc5 {[%clk
0:01:36.7]} 25. Be5 {[%clk 0:01:26.7]} 25... Kg7 {[%clk 0:01:31.9]} 26. Rbd1
{[%clk 0:01:25.6]} 26... Ne6 {[%clk 0:01:28.4]} 27. f4 {[%clk 0:01:21.8]} 27...
Bxe5 {[%clk 0:01:20.4]} 28. fxe5 {[%clk 0:01:22.8]} 28... b5 {[%clk 0:01:09.7]}
29. Kf2 {[%clk 0:01:23]} 29... b4 {[%clk 0:01:07.8]} 30. axb4 {[%clk 0:01:22.7]}
30... axb4 {[%clk 0:01:08.5]} 31. Ra1 {[%clk 0:01:19]} 31... b3 {[%clk 0:01:06]}
32. Bd1 {[%clk 0:01:17.7]} 32... Nc5 {[%clk 0:01:03.4]} 33. Be2 {[%clk
0:01:16.3]} 33... Re8 {[%clk 0:00:58.7]} 34. Bf1 {[%clk 0:01:08.8]} 34... Rb8
{[%clk 0:00:36]} 35. Ra7 {[%clk 0:01:09]} 35... Bc8 {[%clk 0:00:34.1]} 36. Ke3
{[%clk 0:01:08.7]} 36... Bf5 {[%clk 0:00:19]} 37. Kd4 {[%clk 0:01:07.7]} 37...
Ne6+ {[%clk 0:00:19.6]} 38. Kc3 {[%clk 0:00:52.2]} 38... Rc8 {[%clk 0:00:20.2]}
39. Kb4 {[%clk 0:00:33.5]} 39... Rb8+ {[%clk 0:00:18.9]} 40. Kc3 {[%clk
0:00:34.2]} 40... Rc8 {[%clk 0:00:20]} 41. Kb4 {[%clk 0:00:35]} 41... Be4 {[%clk
0:00:20.6]} 42. g3 {[%clk 0:00:33.1]} 42... Ng5 {[%clk 0:00:20.8]} 43. h4 {[%clk
0:00:30.8]} 43... Nf3 {[%clk 0:00:21.8]} 44. Re3 {[%clk 0:00:32]} 44... Nxe5
{[%clk 0:00:22.6]} 45. Bh3 {[%clk 0:00:29]} 45... Rd8 {[%clk 0:00:18.1]} 46. Rc7
{[%clk 0:00:27.4]} 46... Nd3+ {[%clk 0:00:17.8]} 47. Kb5 {[%clk 0:00:25.6]}
47... Kf6 {[%clk 0:00:15.7]} 48. g4 {[%clk 0:00:23.3]} 48... Nxb2 {[%clk
0:00:15.9]} 49. g5+ {[%clk 0:00:24]} 49... Ke5 {[%clk 0:00:14.9]} 50. Rxf7
{[%clk 0:00:24.9]} 50... Nd3 {[%clk 0:00:14.8]} 51. Rf1 {[%clk 0:00:16.8]} 51...
b2 {[%clk 0:00:15.2]} 52. Bg2 {[%clk 0:00:11.4]} 52... Kd4 {[%clk 0:00:14.8]}
53. Re2 {[%clk 0:00:11.7]} 53... Rb8+ {[%clk 0:00:14.8]} 54. Kc6 {[%clk
0:00:11.7]} 54... b1=Q {[%clk 0:00:15.8]} 55. Rxb1 {[%clk 0:00:12.9]} 55... Rxb1
{[%clk 0:00:16.4]} 56. Bxe4 {[%clk 0:00:14.8]} 56... dxe4 {[%clk 0:00:17.5]} 0-1

[Event "*** Titled Tuesday Blitz"]
[Site "Chess.com"]
[Date "2019.02.05"]
[Round "1"]
[White "Zaven_ChessMood"]
[Black "Vuks91"]
[Result "1-0"]
[WhiteElo "2875"]
[BlackElo "2438"]
[TimeControl "180+2"]
[EndTime "13:09:48 PST"]
[Termination "Zaven_ChessMood won by resignation"]

1. e4 {[%clk 0:03:01]} 1... c5 {[%clk 0:03:00.8]} 2. Nf3 {[%clk 0:03:01.3]} 2...
Nc6 {[%clk 0:03:02.1]} 3. Bb5 {[%clk 0:03:01.5]} 3... g6 {[%clk 0:03:03.1]} 4.
Bxc6 {[%clk 0:03:01.3]} 4... dxc6 {[%clk 0:03:05]} 5. d3 {[%clk 0:03:02.4]} 5...
Bg7 {[%clk 0:03:06.1]} 6. h3 {[%clk 0:03:01.3]} 6... Nf6 {[%clk 0:03:06.6]} 7.
Nc3 {[%clk 0:03:02.3]} 7... Nd7 {[%clk 0:03:07.7]} 8. Be3 {[%clk 0:03:03.5]}
8... b6 {[%clk 0:03:07.6]} 9. Qd2 {[%clk 0:03:04.7]} 9... h6 {[%clk 0:02:59.2]}
10. O-O {[%clk 0:03:04.7]} 10... e5 {[%clk 0:02:37.3]} 11. Nh2 {[%clk
0:03:05.2]} 11... Nf8 {[%clk 0:02:32.5]} 12. f4 {[%clk 0:03:06.2]} 12... exf4
{[%clk 0:02:34.4]} 13. Bxf4 {[%clk 0:03:07.7]} 13... Ne6 {[%clk 0:02:35.8]} 14.
Be3 {[%clk 0:03:07.1]} 14... Qh4 {[%clk 0:02:17.2]} 15. Nf3 {[%clk 0:03:04]}
15... Qh5 {[%clk 0:02:14.6]} 16. Ne2 {[%clk 0:03:03.9]} 16... c4 {[%clk
0:01:26.5]} 17. d4 {[%clk 0:03:02.8]} 17... Qb5 {[%clk 0:01:19]} 18. a4 {[%clk
0:03:00.1]} 18... Qa6 {[%clk 0:01:10.6]} 19. Nf4 {[%clk 0:02:57]} 19... Ng5
{[%clk 0:00:59.2]} 20. Nxg5 {[%clk 0:02:48.5]} 20... hxg5 {[%clk 0:01:01.1]} 21.
Ne2 {[%clk 0:02:49.2]} 21... g4 {[%clk 0:01:00.7]} 22. hxg4 {[%clk 0:02:49.7]}
22... Bxg4 {[%clk 0:01:02.6]} 23. c3 {[%clk 0:02:48.1]} 23... Qb7 {[%clk
0:00:57.3]} 24. Bg5 {[%clk 0:02:43.4]} 24... O-O {[%clk 0:00:27.6]} 25. Bf6
{[%clk 0:02:39.9]} 25... Rae8 {[%clk 0:00:18.8]} 26. e5 {[%clk 0:02:39.9]} 26...
Qd7 {[%clk 0:00:18.2]} 27. Ng3 {[%clk 0:02:38.7]} 27... c5 {[%clk 0:00:18.8]}
28. Bxg7 {[%clk 0:02:34.7]} 28... Kxg7 {[%clk 0:00:19.4]} 29. Rf4 {[%clk
0:02:35.5]} 29... cxd4 {[%clk 0:00:19.2]} 30. cxd4 {[%clk 0:02:36.1]} 30... f6
{[%clk 0:00:17.6]} 31. exf6+ {[%clk 0:02:23]} 31... Rxf6 {[%clk 0:00:19.5]} 32.
Rxf6 {[%clk 0:02:24.1]} 32... Kxf6 {[%clk 0:00:21.4]} 33. Rf1+ {[%clk
0:02:21.1]} 33... Kg7 {[%clk 0:00:22.5]} 34. Qf4 {[%clk 0:02:22.7]} 34... Qe6
{[%clk 0:00:23.8]} 35. Rf2 {[%clk 0:02:05.9]} 35... Qe1+ {[%clk 0:00:09.3]} 36.
Nf1 {[%clk 0:02:04.8]} 36... Bf5 {[%clk 0:00:09.6]} 37. g4 {[%clk 0:02:00.5]}
37... Re4 {[%clk 0:00:10.8]} 38. Qc7+ {[%clk 0:02:00.7]} 38... Re7 {[%clk
0:00:12.4]} 39. Qb8 {[%clk 0:01:51.1]} 39... Re4 {[%clk 0:00:10.4]} 40. gxf5
{[%clk 0:01:34.5]} 40... Rg4+ {[%clk 0:00:11.4]} 41. Rg2 {[%clk 0:01:35.9]}
41... Rxg2+ {[%clk 0:00:12.6]} 42. Kxg2 {[%clk 0:01:37.8]} 42... Qe4+ {[%clk
0:00:14.2]} 43. Kh2 {[%clk 0:01:35.7]} 43... Qe2+ {[%clk 0:00:11.3]} 44. Kg1
{[%clk 0:01:35.6]} 44... Qg4+ {[%clk 0:00:12.9]} 45. Qg3 {[%clk 0:01:36.4]}
45... Qxd4+ {[%clk 0:00:14.1]} 46. Qf2 {[%clk 0:01:33.8]} 46... Qg4+ {[%clk
0:00:08.1]} 47. Kh2 {[%clk 0:01:34.3]} 47... gxf5 {[%clk 0:00:09.5]} 48. Ne3
{[%clk 0:01:34.3]} 48... Qh5+ {[%clk 0:00:06.7]} 49. Kg2 {[%clk 0:01:35.2]}
49... Qg5+ {[%clk 0:00:04.6]} 50. Kf1 {[%clk 0:01:35.9]} 50... f4 {[%clk
0:00:05.1]} 51. Nxc4 {[%clk 0:01:36.8]} 51... Qd5 {[%clk 0:00:04.6]} 52. Qxf4
{[%clk 0:01:35.4]} 52... Qd3+ {[%clk 0:00:05.8]} 53. Kf2 {[%clk 0:01:36.2]}
53... Qc2+ {[%clk 0:00:07]} 54. Ke3 {[%clk 0:01:35.2]} 54... Qc1+ {[%clk
0:00:07.7]} 55. Kf3 {[%clk 0:01:35.7]} 55... Qd1+ {[%clk 0:00:08.7]} 56. Kf2
{[%clk 0:01:33.4]} 56... Qc2+ {[%clk 0:00:08.9]} 57. Ke1 {[%clk 0:01:34.6]}
57... Qxa4 {[%clk 0:00:05.8]} 58. Qe5+ {[%clk 0:01:32.1]} 58... Kg6 {[%clk
0:00:06.3]} 59. Ne3 {[%clk 0:01:28.7]} 59... Qb4+ {[%clk 0:00:05.2]} 60. Ke2
{[%clk 0:01:29.9]} 60... Kh7 {[%clk 0:00:04.5]} 61. Qc3 {[%clk 0:01:25.3]} 61...
Qb5+ {[%clk 0:00:04.8]} 62. Qd3+ {[%clk 0:01:26.1]} 62... Qxd3+ {[%clk 0:00:06]}
63. Kxd3 {[%clk 0:01:27.8]} 63... Kg6 {[%clk 0:00:07.4]} 64. Kc4 {[%clk
0:01:29]} 64... Kf6 {[%clk 0:00:08.7]} 65. Kd5 {[%clk 0:01:26.8]} 65... Kg5
{[%clk 0:00:05]} 66. Nc4 {[%clk 0:01:24.7]} 66... Kf4 {[%clk 0:00:06.5]} 67. b4
{[%clk 0:01:25.5]} 67... b5 {[%clk 0:00:07]} 68. Nd6 {[%clk 0:01:23.4]} 68... a6
{[%clk 0:00:05.7]} 69. Kc5 {[%clk 0:01:24.6]} 69... Ke3 {[%clk 0:00:06]} 70.
Nxb5 {[%clk 0:01:25.4]} 70... axb5 {[%clk 0:00:06.6]} 71. Kxb5 {[%clk
0:01:26.8]} 1-0